Workbook

Sheet 1-3 ГОДА
A1: 17 день на 02.12.2025
A2: МОУ детский сад № 30 меню ( соленые овощи) для детей дошкольного возраста от 1-3 лет, 12 часового режима функционирования
A3: Прием пищи, наименование блюда | B3: Масса порции | C3: Пищевые вещества | F3: Энергети-ческая ценность, ккал
C4: Белки, г | D4: Жиры, г | E4: Углеводы, г
A5: Завтрак
A6: КАША ВЯЗКАЯ МОЛОЧНАЯ (РИСОВАЯ) ТТК №102 | B6: 150 | C6: 2.3 | D6: 6.0 | E6: 23.7 | F6: 163.5
A7: ЧАЙ С МОЛОКОМ ИЛИ СЛИВКАМИ | B7: 180 | C7: 2.7 | D7: 2.3 | E7: 14.0 | F7: 87.6
A8: СЫР ( ПОРЦИЯМИ) № 7 | B8: 5 | C8: 1.2 | D8: 1.5 | E8: 0.0 | F8: 17.7
A9: БАТОН | B9: 20 | C9: 1.5 | D9: 0.6 | E9: 10.3 | F9: 52.4
A10: ИТОГО ЗА ЗАВТРАК | B10: 355 | C10: =SUM(C6:C9) -> 7.7 | D10: =SUM(D6:D9) -> 10.4 | E10: =SUM(E6:E9) -> 48.0 | F10: =SUM(F6:F9) -> 321.2
A11: II Завтрак
A12: СОК ЯБЛОЧНО-ВИНОГРАДНЫЙ №399 | B12: 180 | C12: 0.9 | D12: 0.2 | E12: 17.7 | F12: 75.1
A13: ИТОГО ЗА 2-й ЗАВТРАК | B13: =SUM(B12) -> 180 | C13: =SUM(C12) -> 0.9 | D13: =SUM(D12) -> 0.2 | E13: =SUM(E12) -> 17.7 | F13: =SUM(F12) -> 75.1
A14: Обед
A15: САЛАТ ИЗ СВЕКЛЫ №33 | B15: 30 | C15: 0.4 | D15: 1.9 | E15: 2.5 | F15: 29.5
A16: БОРЩ НА МЯСО-КОСТНОМ БУЛЬОНЕ СО СМЕТАНОЙ ТТК №200 | B16: 150/5 | C16: 1.2 | D16: 3.0 | E16: 5.4 | F16: 54.8
A17: ФРИКАДЕЛЬКИ В СОУСЕ (говядина) ТТК №60 | B17: 50/30 | C17: 8.3 | D17: 9.8 | E17: 15.6 | F17: 154.2
A18: МАКАРОННЫЕ ИЗДЕЛИЯ ОТВАРНЫ С МАСЛОМ № 205 | B18: 110 | C18: 4.1 | D18: 4.4 | E18: 26.3 | F18: 166.1
A19: ХЛЕБ пеклеваный | B19: 20 | C19: 1.3 | D19: 0.2 | E19: 8.5 | F19: 40.8
A20: КИСЕЛЬ ИЗ ПОВИДЛА, ДЖЕМА, ВАРЕНЬЯ №383 | B20: 150 | C20: 0.1 | D20: 0.0 | E20: 21.1 | F20: 84.8
A21: ИТОГО ЗА ОБЕД | B21: 545 | C21: 15.4 | D21: 19.3 | E21: 79.4 | F21: 530.2
A22: Полдник
A23: ЗАПЕКАНКА ИЗ ТВОРОГА С СОУСОМ МОЛОЧНЫМ СЛАДКИМ С ВАНИЛЬЮ ТТК № 151, № 477 | B23: 130/50 | C23: 16.3 | D23: 13.2 | E23: 27.4 | F23: 365.8
A24: КЕФИР № 401 | B24: 180 | C24: 5.1 | D24: 4.4 | E24: 7.0 | F24: 92.5
A25: БАТОН | B25: 40 | C25: 3.0 | D25: 1.2 | E25: 20.6 | F25: 104.8
A29: ИТОГО ЗА ПОЛДНИК | B29: 400 | C29: 24.4 | D29: 18.8 | E29: 55.0 | F29: 563.1
A30: Всего за день: | C30: 48.4 | D30: 48.7 | E30: 200.1 | F30: 1 489.6

Sheet 3-7 ЛЕТ
A1: 17 день на 02.12.2025
A2: МОУ детский сад № 30 меню ( соленые овощи) для детей дошкольного возраста от 3-7 лет, 12 часового режима функционирования
A3: Прием пищи, наименование блюда | B3: Масса порции | C3: Пищевые вещества | F3: Энергети-ческая ценность, ккал
C4: Белки, г | D4: Жиры, г | E4: Углеводы, г
A5: Завтрак
A6: КАША ВЯЗКАЯ МОЛОЧНАЯ (РИСОВАЯ) ТТК № 102 | B6: 180 | C6: 2.7 | D6: 7.2 | E6: 28.4 | F6: 196.2
A7: ЧАЙ С МОЛОКОМ ИЛИ СЛИВКАМИ № 394 | B7: 180 | C7: 2.7 | D7: 2.3 | E7: 14.0 | F7: 87.6
A8: БАТОН С СЫРОМ № 3 | B8: 30/5/10 | C8: 4.4 | D8: 6.7 | E8: 14.6 | F8: 141.6
A9: ИТОГО ЗА ЗАВТРАК | B9: 405 | C9: =SUM(C6:C8) -> 9.8 | D9: =SUM(D6:D8) -> 16.2 | E9: =SUM(E6:E8) -> 57.0 | F9: =SUM(F6:F8) -> 425.4
A10: II Завтрак
A11: ЯБЛОЧНО-виноградный №399 | B11: 200 | C11: 1.0 | D11: 0.2 | E11: 19.6 | F11: 83.4
A12: ИТОГО ЗА 2-й ЗАВТРАК | B12: 200 | C12: =SUM(C11) -> 1.0 | D12: =SUM(D11) -> 0.2 | E12: =SUM(E11) -> 19.6 | F12: =SUM(F11) -> 83.4
A13: Обед
A14: САЛАТ ИЗ БЕЛОКОЧАННОЙ КАПУСТЫ № 20 | B14: 50 | C14: 0.8 | D14: 2.4 | E14: 4.5 | F14: 44.1
A15: БОРЩ СО СМЕТАНОЙ ТТК № 200 | B15: 180/5 | C15: 1.3 | D15: 4.3 | E15: 7.1 | F15: 76.6
A16: ФРИКАДЕЛЬКИ МЯСНЫЕ В СОУСЕ (говядина) ТТК № 60 | B16: 70/30 | C16: 11.5 | D16: 13.1 | E16: 8.3 | F16: 203.3
A17: МАКАРОННЫЕ ИЗДЕЛИЯ ОТВАРНЫЕ С МАСЛОМ № 205 | B17: 130 | C17: 4.9 | D17: 4.4 | E17: 31.1 | F17: 188.4
A18: КИСЕЛЬ ИЗ ПОВИДЛА, ДЖЕМА, ВАРЕНЬЯ № 383 | B18: 180 | C18: 0.1 | D18: 0.0 | E18: 25.7 | F18: 102.6
A19: ХЛЕБ пеклеванный | B19: 40 | C19: 2.6 | D19: 0.4 | E19: 17.0 | F19: 81.6
A21: ИТОГО ЗА ОБЕД | B21: 685 | C21: 21.2 | D21: 24.6 | E21: 93.7 | F21: 696.6
A22: Полдник
A23: ЗАПЕКАНКА ИЗ ТВОРОГА ТТК № 151 | B23: 150/60 | C23: 28.1 | D23: 21.3 | E23: 30.1 | F23: 439.7
A24: Кефир | B24: 200 | C24: 5.6 | D24: 4.9 | E24: 7.8 | F24: 102.8
A25: БАТОН | B25: 40 | C25: 3.0 | D25: 1.2 | E25: 20.6 | F25: 104.8
A29: ИТОГО ЗА ПОЛДНИК | B29: 480 | C29: 36.7 | D29: 27.4 | E29: 58.5 | F29: 647.3
A30: Всего за день: | C30: 68.7 | D30: 68.4 | E30: 228.8 | F30: 1 852.7

Sheet 3-7 ЛЕТ (24)
A1: 17 день на 02.12.2025
A2: МОУ детский сад № 30 меню ( соленые овощи) для детей дошкольного возраста от 3-7 лет, 24 часового режима функционирования
A3: Прием пищи, наименование блюда | B3: Масса порции | C3: Пищевые вещества | F3: Энергети-ческая ценность, ккал
C4: Белки, г | D4: Жиры, г | E4: Углеводы, г
A5: Завтрак
A6: КАША ВЯЗКАЯ МОЛОЧНАЯ (РИСОВАЯ) ТТК № 102 | B6: 180 | C6: 2.7 | D6: 7.2 | E6: 28.4 | F6: 196.2
A7: ЧАЙ С МОЛОКОМ ИЛИ СЛИВКАМИ № 394 | B7: 180 | C7: 2.7 | D7: 2.3 | E7: 14.0 | F7: 87.6
A8: БАТОН С СЫРОМ № 3 | B8: 30/5,10 | C8: 4.4 | D8: 6.7 | E8: 14.6 | F8: 141.6
A9: ИТОГО ЗА ЗАВТРАК | B9: 405 | C9: =SUM(C6:C8) -> 9.8 | D9: 16.2 | E9: 57.0 | F9: 425.4
A10: II Завтрак
A11: ЯБЛОЧНО-абрикосовый №399 | B11: 200 | C11: 1.0 | D11: 0.2 | E11: 19.6 | F11: 83.4
A12: ИТОГО ЗА 2-й ЗАВТРАК | B12: 200 | C12: =SUM(C11) -> 1.0 | D12: 0.2 | E12: 19.6 | F12: 83.4
A13: Обед
A14: САЛАТ ИЗ БЕЛОКОЧАННОЙ КАПУСТЫ № 20 | B14: 50 | C14: 0.8 | D14: 2.4 | E14: 4.5 | F14: 44.1
A15: БОРЩ СО СМЕТАНОЙ ТТК № 200 | B15: 180/5 | C15: 1.3 | D15: 4.3 | E15: 7.1 | F15: 76.6
A16: ФРИКАДЕЛЬКИ МЯСНЫЕ В СОУСЕ (говядина) ТТК № 60 | B16: 70/30 | C16: 11.5 | D16: 13.1 | E16: 8.3 | F16: 203.3
A17: МАКАРОННЫЕ ИЗДЕЛИЯ ОТВАРНЫЕ С МАСЛОМ № 205 | B17: 130 | C17: 4.9 | D17: 4.4 | E17: 31.1 | F17: 188.4
A18: КИСЕЛЬ ИЗ ПОВИДЛА, ДЖЕМА, ВАРЕНЬЯ № 383 | B18: 180 | C18: 0.1 | D18: 0.0 | E18: 25.7 | F18: 102.5
A19: ХЛЕБ пеклеванный | B19: 40 | C19: 2.6 | D19: 0.4 | E19: 17.0 | F19: 81.6
A21: ИТОГО ЗА ОБЕД | B21: 685 | C21: 21.2 | D21: 24.6 | E21: 93.7 | F21: 696.6
A22: Полдник
A23: ПЕЧЕНЬЕ ШОКОЛАДНОЕ | B23: 50 | C23: 3.8 | D23: 4.9 | E23: 37.2 | F23: 208.5
A24: ЧАЙ С САХАРОМ, ВАРЕНЬЕМ, ДЖЕМОМ, МЕДОМ, ПОВИДЛОМ №362 | B24: 190/10 | C24: 0.1 | D24: 0.0 | E24: 9.8 | F24: 39.4
A25: ИТОГО ЗА ПОЛДНИК | B25: 250 | C25: 3.9 | D25: 4.9 | E25: 47.0 | F25: 247.9
C26: УЖИН
A27: ЗАПЕКАНКА ИЗ ТВОРОГА ТТК № 151 | B27: 150/60 | C27: 28.1 | D27: 21.3 | E27: 30.1 | F27: 439.7
A28: ЧАЙ С ЛИМОНОМ № 393 | B28: 180/10/7 | C28: 0.2 | D28: 0.0 | E28: 10.0 | F28: 41.7
A29: БАТОН | B29: 45 | C29: 3.4 | D29: 1.3 | E29: 23.1 | F29: 117.9
A32: ИТОГО ЗА УЖИН | B32: 452 | C32: 31.7 | D32: 22.6 | E32: 63.2 | F32: 599.3
C33: 2 УЖИН
A34: СНЕЖОК № 401 | B34: 180 | C34: 5.1 | D34: 4.4 | E34: 7.0 | F34: 92.5
A35: ИТОГО ЗА 2 УЖИН | B35: 180 | C35: 5.1 | D35: 4.4 | E35: 7.0 | F35: 92.5
A36: Всего за день: | C36: 72.7 | D36: 72.9 | E36: 257.5 | F36: 2 145.1
